bitfinex/quotes_ETHUSD_20230116
["timestamp","ask_amount","ask_price","bid_price","bid_amount"]
[1673879456307,0.3744794,1548.7,1548.3,0.00423832]
[1673879456456,0.3744794,1548.7,1548.3,0.00223832]
[1673879457420,0.3744794,1548.7,1548.3,6.46092832]
[1673879457733,0.3744794,1548.7,1548.3,6.46292832]
[1673879458053,6.8315194,1548.7,1548.3,0.00423832]
[1673879458264,0.68315194,1548.6,1548.3,0.00223832]
[1673879458976,6.9295194,1548.7,1548.3,0.00223832]
[1673879459568,6.55504,1548.7,1548.3,0.00223832]
[1673879460534,19.46912,1548.7,1548.2,0.002]
[1673879460744,19.46912,1548.7,1548.1,30.374]
[1673879460745,12.91614,1548.5,1548.1,30.312]
[1673879460999,1.291614,1548.4,1548.1,0.002]
[1673879461202,1.291614,1548.4,1548.0,22.38131]
[1673879461359,15.2406,1548.5,1548.0,22.38131]
[1673879461569,15.2406,1548.5,1548.0,25.65409678]
[1673879461822,15.2406,1548.5,1548.2,12.91806]
[1673879462035,0.098,1548.5,1548.3,3.0]
[1673879462206,0.098,1548.7,1548.4,8.98027]
[1673879462422,6.55478,1548.8,1548.4,8.98227]
[1673879462673,6.55478,1548.8,1548.4,21.89881]
[1673879462674,0.098,1548.8,1548.4,21.89881]
[1673879462890,9.7391,1548.9,1548.4,21.89881]
[1673879463101,25.0291,1548.9,1548.4,21.89881]
[1673879463315,25.0291,1548.9,1548.5,2.189881]
[1673879463459,25.0291,1548.9,1548.5,8.647461]
[1673879463781,25.0291,1548.9,1548.5,8.649461]
[1673879463782,0.098,1548.9,1548.5,8.649461]
[1673879464100,7.68482918,1549.0,1548.5,21.56741903]
[1673879464682,15.8726,1549.0,1548.6,2.1567419]
[1673879465050,15.8726,1549.0,1548.6,8.65952868]
[1673879465051,0.098,1549.0,1548.6,8.65952868]
[1673879465157,0.18483311,1549.1,1548.7,22.64360678]
[1673879465162,0.18483311,1549.1,1548.8,6.27278678]
[1673879465185,0.18483311,1549.1,1548.9,0.62727868]
[1673879465514,0.18483311,1549.1,1548.9,19.99584868]
[1673879465701,0.18483311,1549.1,1548.9,19.99784868]
[1673879467203,0.18483311,1549.1,1548.9,7.08176794]
[1673879467518,0.18483311,1549.1,1548.9,13.53795794]
[1673879468674,0.18483311,1549.1,1548.9,7.08176794]
[1673879468896,6.64029311,1549.1,1548.9,0.002]
[1673879469202,6.64029311,1549.1,1548.7,0.066]
[1673879469203,13.19375311,1549.1,1548.7,0.066]
[1673879469410,17.75921825,1549.1,1548.6,0.002]
[1673879469563,12.9128,1548.9,1548.4,0.002]
[1673879469774,15.1256,1548.8,1548.1,17.29006]
[1673879470007,1.51256,1548.7,1548.1,18.56856678]
[1673879470248,16.35463918,1548.8,1548.1,18.56856678]
[1673879470410,15.2236,1548.8,1548.3,2.0]
[1673879470619,15.2236,1548.8,1548.3,14.91733]
[1673879470830,15.2236,1548.8,1548.3,14.91933]
[1673879471084,15.2236,1548.8,1548.3,11.73342678]
[1673879471353,15.2236,1548.8,1548.4,0.23]
[1673879471354,17.876292,1548.8,1548.4,0.23]
[1673879471516,17.391592,1548.8,1548.4,0.23]
[1673879472051,30.304812,1548.8,1548.3,0.066]
[1673879472363,34.22393796,1548.8,1548.1,0.002]
[1673879472573,34.22393796,1548.8,1548.1,3.0]
[1673879472784,3.9070938,1548.7,1548.1,14.728522]
[1673879472959,3.9070938,1548.7,1548.2,5.75768678]
[1673879472960,0.4847,1548.7,1548.2,5.75768678]
[1673879473165,15.2236,1548.8,1548.3,19.18974678]
[1673879473397,15.2236,1548.8,1548.3,19.19174678]
[1673879474150,15.2236,1548.8,1548.4,0.23]
[1673879474308,15.2236,1548.8,1548.4,13.14614]
[1673879474513,15.2236,1548.8,1548.4,15.74248068]
[1673879474854,15.2236,1548.8,1548.4,17.74248068]
[1673879475061,15.2236,1548.8,1548.4,15.74248068]
[1673879475275,15.2236,1548.8,1548.4,0.002]
[1673879475484,15.2236,1548.8,1548.3,3.002]
[1673879475485,37.86627678,1548.8,1548.3,3.002]
[1673879475668,34.59349,1548.8,1548.2,14.98371]
[1673879475886,34.59349,1548.8,1548.2,18.19249678]
[1673879476191,34.59349,1548.8,1548.2,24.77704646]
[1673879476192,3.459349,1548.7,1548.2,24.77704646]
[1673879476403,9.916449,1548.7,1548.2,18.31814646]
[1673879476618,16.471549,1548.7,1548.2,9.73359678]
[1673879477456,25.33892138,1548.7,1548.2,0.002]
[1673879477773,25.82362138,1548.7,1548.1,3.002]
[1673879477983,25.82362138,1548.7,1548.0,36.83574]
[1673879478249,29.09640816,1548.7,1548.0,30.312]
[1673879478751,19.37457,1548.5,1548.0,30.312]
[1673879479144,19.47257,1548.5,1548.0,0.002]
[1673879479190,19.47257,1548.5,1547.9,6.51442839]
[1673879479485,19.47257,1548.5,1547.9,16.24733517]
[1673879479486,19.95737,1548.5,1547.9,16.24733517]
[1673879479598,19.95737,1548.5,1547.9,9.78699517]
[1673879479600,1.995737,1548.4,1547.9,6.51420839]
[1673879479675,6.45881,1548.3,1547.9,0.05408839]
[1673879479881,6.45881,1548.3,1547.9,3.28208839]
[1673879479882,20.97671,1548.3,1547.9,3.28208839]
[1673879480113,27.43552,1548.3,1547.9,0.05208839]
[1673879480348,3.27278678,1548.2,1547.9,0.05208839]
[1673879480555,13.24633868,1548.1,1547.9,0.05208839]
[1673879480774,2.0,1548.0,1547.9,0.05208839]
[1673879481156,8.45994,1548.0,1547.9,0.05208839]
[1673879481341,15.01788,1548.0,1547.9,0.05208839]
[1673879481556,1.6069,1548.0,1547.9,0.05208839]
[1673879481767,1.21741787,1548.0,1547.9,0.05208839]
[1673879482668,0.91017868,1548.1,1547.9,0.05208839]
[1673879482869,0.32727868,1548.1,1547.9,0.05208839]
[1673879483463,0.5829,1548.2,1547.9,0.05208839]
[1673879483656,3.4849,1548.2,1547.9,0.05208839]
[1673879484336,18.33202577,1548.2,1547.9,0.05208839]
[1673879484523,18.43002577,1548.2,1547.9,0.05208839]
[1673879484710,0.5829,1548.2,1547.9,0.05208839]
[1673879484921,6.94419,1548.2,1547.9,0.05208839]
[1673879485188,7.04219,1548.2,1547.9,0.05208839]
[1673879485361,13.50148,1548.2,1547.9,0.05208839]
[1673879485708,8.45973,1548.1,1547.9,0.05208839]
[1673879485925,6.55773,1548.1,1547.9,0.05208839]
[1673879486112,0.655773,1548.0,1547.9,0.05208839]
[1673879486344,7.115713,1548.0,1547.9,0.05208839]
[1673879486522,13.673653,1548.0,1547.9,0.05208839]
[1673879486733,15.673653,1548.0,1547.9,0.05208839]
[1673879486933,0.753773,1548.0,1547.9,0.05208839]
[1673879487300,6.45973,1548.1,1547.9,0.05208839]
[1673879487301,0.098,1548.1,1547.9,0.05208839]
[1673879487511,8.97109577,1548.2,1547.9,0.05208839]
[1673879487822,16.77440678,1548.2,1547.9,0.05208839]
[1673879488035,18.70323255,1548.2,1547.9,0.05208839]
[1673879488355,16.77440678,1548.2,1547.9,0.05208839]
[1673879488572,1.67744068,1548.1,1547.9,0.05208839]
[1673879488716,16.77440678,1548.2,1547.9,0.05208839]
[1673879488717,7.04225,1548.2,1547.9,0.05208839]
[1673879489553,6.55735,1548.2,1547.9,0.05208839]
[1673879489978,0.098,1548.2,1547.9,0.06274117]
[1673879490293,6.45934,1548.2,1547.9,0.06274117]
[1673879490500,6.55734,1548.2,1547.9,0.06274117]
[1673879490943,16.406169,1548.2,1547.9,0.05945207]
[1673879492548,22.865509,1548.2,1547.9,0.05945207]
[1673879492763,16.406169,1548.2,1547.9,0.05945207]
[1673879492975,9.946829,1548.2,1547.9,0.05945207]
[1673879493343,6.55734,1548.2,1547.9,3.05945207]
[1673879494351,0.098,1548.2,1547.9,3.05945207]
[1673879494548,27.33761,1548.3,1547.9,3.05945207]
[1673879494549,33.89466,1548.3,1547.9,3.05945207]
[1673879494912,33.89466,1548.3,1547.9,0.05945207]
[1673879495122,6.66225278,1548.2,1547.9,0.04879929]
[1673879495334,22.65137678,1548.1,1547.9,0.04879929]
[1673879495652,2.0,1548.0,1547.9,0.04879929]
[1673879495881,25.13750678,1548.0,1547.9,0.04879929]
[1673879496231,25.88184596,1548.0,1547.9,0.04879929]
[1673879496386,28.27376613,1548.0,1547.9,0.04879929]
[1673879496599,21.81382613,1548.0,1547.9,0.04879929]
[1673879496827,18.54103935,1548.0,1547.9,0.04879929]
[1673879497475,17.40980017,1548.0,1547.9,0.04879929]
[1673879498131,20.68258695,1548.0,1547.9,0.04879929]
[1673879498277,27.78886613,1548.0,1547.9,0.04879929]
[1673879500915,21.32892613,1548.0,1547.9,0.04879929]
[1673879501127,20.68258695,1548.0,1547.9,0.04879929]
[1673879501376,27.14252695,1548.0,1547.9,0.04879929]
[1673879502192,28.5864029,1548.0,1547.9,0.04879929]
[1673879502418,31.16156785,1548.0,1547.9,0.04879929]
[1673879502743,31.16156785,1548.0,1547.5,0.05273964]
[1673879502744,3.02437799,1547.9,1547.5,0.05273964]
[1673879502968,3.02437799,1547.9,1547.4,0.0139083]
[1673879502969,3.27278678,1547.6,1547.4,0.0139083]
[1673879503132,3.27278678,1547.6,1547.3,0.04012705]
[1673879503133,19.38735,1547.4,1547.3,0.04012705]
[1673879503358,39.78213678,1547.4,1547.0,0.05515446]
[1673879503557,12.92656,1547.2,1547.0,0.05515446]
[1673879503743,16.20018678,1547.1,1547.0,0.05515446]
[1673879503954,6.5617,1547.1,1547.0,0.05515446]
[1673879504208,0.098,1547.1,1547.0,0.05515446]
[1673879504428,13.02489,1547.2,1547.0,0.05515446]
[1673879504598,12.2470894,1547.2,1547.0,0.05515446]
[1673879504813,6.56128,1547.2,1547.0,0.05515446]
[1673879505002,0.098,1547.2,1547.1,0.36597887]
[1673879505212,6.46326,1547.3,1547.1,0.36597887]
[1673879505213,0.098,1547.3,1547.1,0.36597887]
[1673879505444,6.56063,1547.4,1547.1,0.36597887]
[1673879505705,9.83341678,1547.4,1547.1,0.36597887]
[1673879505862,14.52327446,1547.4,1547.1,0.36597887]
[1673879506546,21.47115446,1547.4,1547.1,0.36597887]
[1673879507072,6.46328,1547.2,1547.1,0.36597887]
[1673879507392,18.29734678,1547.2,1547.1,0.36597887]
[1673879509325,25.40696596,1547.2,1547.0,0.05515446]
[1673879509430,2.0,1547.0,1546.3,30.30841985]
[1673879509435,2.0,1547.0,1546.3,0.004]
[1673879509436,3.27278678,1546.9,1546.3,0.004]
[1673879509438,3.75808678,1546.9,1546.4,0.4854]
[1673879509440,3.75808678,1546.9,1546.3,0.4855]
[1673879509441,3.27278678,1546.9,1546.3,0.4855]
[1673879509443,0.32727868,1546.8,1546.3,0.07214993]
[1673879509684,0.32727868,1546.8,1546.3,6.53914993]
[1673879509902,0.098,1546.9,1546.3,13.01019993]
[1673879510116,7.04767,1547.0,1546.4,2.0]
[1673879510285,6.46464,1546.9,1546.3,0.13814993]
[1673879510500,16.30006678,1546.9,1546.3,0.07214993]
[1673879510709,9.83542678,1546.9,1546.3,3.07214993]
[1673879510968,11.46541646,1546.9,1546.3,15.57303992]
[1673879511172,11.46541646,1546.9,1546.3,13.57703992]
[1673879512338,1.72798968,1546.9,1546.3,15.57703992]
[1673879512647,0.098,1547.0,1546.5,12.93221]
[1673879512842,15.5495,1547.1,1546.9,0.96268484]
[1673879514220,15.5495,1547.1,1546.9,13.89162484]
[1673879514537,0.098,1547.1,1546.9,0.96668484]
[1673879514747,27.81077,1547.4,1546.9,3.96268484]
[1673879515069,14.8854,1547.4,1546.9,7.23547162]
[1673879515257,0.022,1547.4,1547.0,3.50278678]
[1673879515476,14.8474,1547.8,1547.1,22.74113868]
[1673879515477,15.84705108,1547.8,1547.1,22.74113868]
[1673879515637,17.29058654,1547.8,1547.2,0.23]
[1673879516012,0.96265108,1547.7,1547.2,0.23]
[1673879516853,0.96265108,1547.7,1547.2,6.69312]
[1673879517168,0.96265108,1547.7,1547.3,3.0]
[1673879517403,0.002,1547.7,1547.4,2.0]
[1673879517533,14.8824,1547.8,1547.3,3.066]
[1673879517534,15.84705108,1547.8,1547.3,3.066]
[1673879517898,0.96265108,1547.7,1547.2,4.84815787]
[1673879518055,0.96265108,1547.7,1547.2,2.23]
[1673879518265,0.96265108,1547.7,1547.2,5.23]
[1673879518636,0.96265108,1547.7,1547.2,5.234]
[1673879518807,0.96265108,1547.7,1547.2,3.234]
[1673879519017,0.96265108,1547.7,1547.2,3.23]
[1673879519225,3.9975033,1547.7,1547.2,4.25948387]
[1673879520006,3.9975033,1547.7,1547.2,6.25948387]
[1673879520221,0.96265108,1547.7,1547.3,2.23]
[1673879520368,8.86726654,1547.8,1547.3,5.7151]
[1673879520573,5.67897332,1547.7,1547.3,3.004]
[1673879520819,12.23741332,1547.7,1547.2,3.066]
[1673879521054,12.23741332,1547.7,1547.2,3.01065759]
[1673879521367,0.96265108,1547.6,1547.2,3.01065759]
[1673879521521,2.18639241,1547.6,1547.2,3.01065759]
[1673879522845,1.22374133,1547.6,1547.2,3.01065759]
[1673879523067,18.38243919,1547.6,1547.2,3.0]
[1673879523740,18.38243919,1547.6,1547.1,0.066]
[1673879523741,20.35024108,1547.4,1547.1,0.066]
[1673879524118,25.62302786,1547.4,1547.1,0.066]
[1673879524380,25.62302786,1547.4,1546.9,0.96268484]
[1673879524381,23.86244914,1547.4,1546.9,0.96268484]
[1673879524387,24.50878832,1547.4,1546.9,0.96268484]
[1673879524389,2.45087883,1547.3,1546.9,0.96268484]
[1673879524777,3.75798678,1547.2,1546.9,0.96268484]
[1673879524987,9.73648678,1547.1,1546.9,0.96268484]
[1673879525233,2.0,1547.0,1546.9,0.96268484]
[1673879525428,14.92824,1547.0,1546.9,0.96268484]
[1673879525648,23.02928874,1547.0,1546.9,0.96268484]
[1673879525863,23.51017312,1547.0,1546.9,0.69968484]
[1673879526201,28.58142017,1547.0,1546.9,0.69968484]
[1673879526932,33.58142017,1547.0,1546.9,0.43668484]
[1673879527714,29.6525944,1547.0,1546.9,0.43668484]
[1673879527935,8.2192717,1547.0,1546.9,0.43668484]
[1673879528177,5.097,1547.0,1546.9,0.43668484]
[1673879528364,0.097,1547.0,1546.9,0.43668484]
[1673879528613,15.3433,1547.1,1546.9,0.43668484]
[1673879528772,0.097,1547.1,1546.9,0.37135884]
[1673879528986,6.46329,1547.2,1546.9,0.37135884]
[1673879529331,0.646329,1547.1,1546.9,0.37135884]
[1673879529508,11.34537053,1547.1,1546.9,0.37135884]
[1673879529717,3.27278678,1547.0,1546.9,0.37135884]
[1673879529974,10.22210678,1547.0,1546.9,0.37135884]
[1673879530193,11.83390678,1547.0,1546.9,0.37135884]
[1673879530350,14.7284393,1547.0,1546.9,0.37135884]
[1673879530926,6.2643193,1547.0,1546.9,0.37135884]
[1673879531244,0.097,1547.0,1546.9,0.37135884]
[1673879531460,1.60882375,1547.1,1546.9,0.37135884]
[1673879531818,4.88161053,1547.1,1546.9,0.37135884]
[1673879531996,1.60882375,1547.1,1546.9,0.37135884]
[1673879532203,1.05949475,1547.2,1546.9,6.83589884]
[1673879532363,27.42683021,1547.3,1546.9,13.30443884]
[1673879532571,27.74383758,1547.3,1546.9,13.30443884]
[1673879532793,25.98329475,1547.3,1546.9,13.30443884]
[1673879533008,29.59680709,1547.3,1546.9,13.30443884]
[1673879533225,20.25071446,1547.3,1546.9,13.30443884]
[1673879533571,19.93370709,1547.3,1546.9,13.30443884]
[1673879533721,0.96249475,1547.2,1546.9,13.30443884]
[1673879534252,10.69862153,1547.2,1546.9,0.37535884]
[1673879534613,2.0323569,1547.1,1546.9,0.37135884]
[1673879534826,8.4961069,1547.1,1546.9,0.37135884]
[1673879534985,8.5931069,1547.1,1546.9,0.37135884]
[1673879535929,2.1293569,1547.1,1546.9,0.37135884]
[1673879536138,0.96249475,1547.1,1546.9,0.37135884]
[1673879536343,8.86933021,1547.2,1546.9,0.37135884]
[1673879536587,18.70241699,1547.2,1546.9,0.37135884]
[1673879536804,0.96249475,1547.1,1546.9,0.37135884]
[1673879537113,10.85715626,1547.0,1546.9,0.37135884]
[1673879537473,18.38077101,1547.0,1546.9,0.37135884]
[1673879537875,19.82430647,1547.0,1546.9,0.37135884]
[1673879538481,12.39769172,1547.0,1546.9,0.37135884]
[1673879538499,25.32593172,1547.0,1546.9,0.37135884]
[1673879539556,13.36207727,1547.0,1546.9,0.37135884]
[1673879539865,1.06179862,1547.0,1546.9,1.46635884]
[1673879540080,0.96479862,1547.0,1546.9,0.37135884]
[1673879541277,2.40833408,1547.1,1546.9,0.37135884]
[1673879541717,0.96479862,1547.0,1546.9,0.37135884]
[1673879542545,2.40833408,1547.1,1546.9,2.49035884]
[1673879542754,2.82234145,1547.2,1546.9,16.96802072]
[1673879543097,2.82234145,1547.2,1546.9,9.48348072]
[1673879543098,0.96479862,1547.1,1546.9,9.48348072]
[1673879543336,0.96479862,1547.1,1546.9,0.37535884]
[1673879543337,10.7013654,1547.1,1546.9,0.37535884]
[1673879543492,10.7013654,1547.1,1546.9,0.37135884]
[1673879543493,0.96479862,1547.0,1546.9,0.37135884]
[1673879543701,6.90531095,1547.0,1546.9,0.37135884]
[1673879543955,14.4304581,1547.0,1546.9,0.37135884]
[1673879544382,7.9663381,1547.0,1546.9,0.37135884]
[1673879544703,2.50619759,1547.0,1546.9,0.37135884]
[1673879544860,0.96566213,1547.0,1546.9,1.46635884]
[1673879545270,0.96766213,1547.0,1546.9,1.46635884]
[1673879545516,2.40919759,1547.1,1546.9,1.46635884]
[1673879546135,2.40919759,1547.1,1546.9,0.37135884]
[1673879547470,0.96566213,1547.1,1546.9,0.37135884]
[1673879547652,0.96566213,1547.1,1546.9,13.99057672]
[1673879547844,1.54053546,1547.2,1546.9,20.45911672]
[1673879547845,2.40919759,1547.2,1546.9,20.45911672]
[1673879548636,0.96566213,1547.2,1546.9,20.45911672]
[1673879548773,2.50619759,1547.3,1547.1,12.9274]
[1673879548981,0.96566213,1547.3,1547.1,14.893528]
[1673879549251,0.96566213,1547.3,1547.1,16.893528]
[1673879549615,0.96566213,1547.3,1547.1,21.357228]
[1673879549819,2.40919759,1547.3,1547.1,6.4677]
[1673879550139,2.40919759,1547.3,1547.1,0.004]
[1673879550140,2.40919759,1547.2,1547.1,0.004]
[1673879550354,2.40919759,1547.2,1547.0,6.46804]
[1673879550807,2.50619759,1547.3,1547.1,19.3911]
[1673879550975,0.96566213,1547.3,1547.1,19.3951]
[1673879551768,0.96566213,1547.3,1547.1,21.987214]
[1673879552374,0.96566213,1547.3,1547.1,19.3951]
[1673879552939,0.96566213,1547.3,1547.1,12.9314]
[1673879553025,2.40919759,1547.3,1547.1,12.9314]
[1673879553870,0.96566213,1547.2,1547.1,0.004]
[1673879554030,0.96566213,1547.2,1547.0,12.93194]
[1673879554241,1.20658189,1547.2,1547.0,0.004]
[1673879554453,1.20658189,1547.2,1546.9,16.30391884]
[1673879554454,2.65011735,1547.2,1546.9,16.30391884]
[1673879554969,2.65011735,1547.2,1546.9,22.76845884]
[1673879555184,0.96566213,1547.2,1546.9,22.76845884]
[1673879555392,0.96566213,1547.2,1546.9,23.25375884]
[1673879555833,2.40919759,1547.3,1547.1,12.9274]
[1673879556045,2.40919759,1547.3,1547.1,12.9314]
[1673879556591,2.41119759,1547.3,1547.1,12.9294]
[1673879556765,0.96566213,1547.2,1547.1,12.9314]
[1673879557185,0.96566213,1547.2,1547.1,6.4677]
[1673879557809,2.40919759,1547.2,1547.1,6.4677]
[1673879558020,0.96566213,1547.2,1547.1,6.4677]
[1673879559237,2.40919759,1547.2,1547.1,6.4677]
[1673879559392,0.96566213,1547.2,1547.1,6.4677]
[1673879559790,2.50619759,1547.3,1547.2,2.0]
[1673879559911,1.44353546,1547.3,1547.2,12.92656]
[1673879560291,1.44353546,1547.3,1547.2,12.93056]
[1673879560456,1.44353546,1547.3,1547.2,0.004]
[1673879560673,1.92882577,1547.3,1547.2,12.92656]
[1673879560900,2.51678913,1547.3,1547.2,19.39184]
[1673879561410,2.51678913,1547.3,1547.2,6.46528]
[1673879562014,2.51878913,1547.3,1547.2,6.46328]
[1673879562186,4.92706151,1547.3,1547.2,6.46528]
[1673879562872,4.92706151,1547.3,1547.2,0.004]
[1673879563145,4.92706151,1547.3,1547.1,12.93138]
[1673879563441,2.41643287,1547.2,1547.1,19.39479]
[1673879563821,0.96657315,1547.2,1547.1,19.39479]
[1673879564652,0.96641957,1547.3,1547.1,26.15277678]
[1673879564860,2.51294537,1547.5,1547.2,5.98798678]
[1673879565110,0.96831601,1547.5,1547.3,32.12426678]
[1673879565336,0.96631601,1547.5,1547.4,16.36732668]
[1673879565492,0.96631601,1547.5,1547.4,21.37132668]
[1673879565707,4.44360315,1547.7,1547.4,24.64411346]
[1673879565708,3.48296013,1547.7,1547.4,24.64411346]
[1673879565963,3.38596013,1547.7,1547.5,3.0]
[1673879566181,3.38596013,1547.7,1547.6,21.63383]
[1673879566333,3.38596013,1547.7,1547.6,27.101213]
[1673879566554,0.007505,1547.7,1547.6,27.101213]
[1673879568222,0.007505,1547.7,1547.6,30.37399978]
[1673879570936,5e-06,1547.7,1547.6,30.37399978]
[1673879571144,0.1357513,1547.9,1547.6,30.37399978]
[1673879571466,0.1357513,1547.9,1547.8,27.84312]
[1673879571797,0.1357513,1547.9,1547.8,34.34990678]
[1673879573311,0.1357513,1547.9,1547.8,29.07712]
[1673879573524,0.1357513,1547.9,1547.8,22.61634]
[1673879574086,0.1357513,1547.9,1547.8,22.38634]
[1673879575502,0.1357513,1547.9,1547.8,22.61634]
[1673879575715,1.09899485,1547.9,1547.8,22.61634]
[1673879577145,1.09899485,1547.9,1547.8,0.234]
[1673879577292,1.3694324,1547.9,1547.7,12.98592]
[1673879577504,2.81706176,1547.9,1547.7,12.92592]
[1673879577932,1.3674324,1547.9,1547.7,12.92592]
[1673879578144,2.81706176,1547.9,1547.7,12.92592]
[1673879578359,0.96324355,1547.8,1547.7,6.46496]
[1673879578564,0.86324355,1547.8,1547.7,6.69496]
[1673879579189,0.40418885,1547.9,1547.7,6.69496]
[1673879580286,1.85381821,1547.9,1547.7,0.004]
[1673879580492,1.85381821,1547.9,1547.6,12.92663]
[1673879582013,1.85581821,1547.9,1547.6,12.92463]
[1673879582223,1.85381821,1547.9,1547.6,12.92663]
[1673879583405,1.85381821,1547.9,1547.6,19.38824]
[1673879584036,0.18538182,1547.8,1547.6,6.46528]
[1673879584973,3.78264398,1547.9,1547.6,6.46528]
[1673879585167,1.44962936,1547.8,1547.6,6.46528]
[1673879585537,3.87964398,1547.9,1547.6,6.46528]
[1673879585754,3.78264398,1547.9,1547.6,6.46528]
[1673879585898,1.44962936,1547.8,1547.6,6.46528]
[1673879586429,1.83759376,1547.8,1547.6,6.46528]
[1673879587054,1.44962936,1547.8,1547.6,6.46528]
[1673879587270,3.61120643,1547.9,1547.6,6.46528]
[1673879587530,3.51420643,1547.9,1547.6,12.92689]
[1673879587720,1.44962936,1547.8,1547.6,12.92689]
[1673879587928,1.36890344,1547.8,1547.6,14.92689]
[1673879588315,1.36890344,1547.8,1547.6,2.004]
[1673879588641,0.96469905,1547.7,1547.5,6.52799]
[1673879588847,0.96469905,1547.7,1547.5,12.92802]
[1673879589269,0.96669905,1547.7,1547.5,12.92602]
[1673879589521,0.96469905,1547.7,1547.5,12.92802]
[1673879590797,0.96469905,1547.7,1547.5,19.39005]
[1673879591101,0.96469905,1547.7,1547.5,21.635296]
[1673879591312,2.33360249,1547.8,1547.5,21.635296]
[1673879591526,1.36890344,1547.8,1547.6,2.0]
[1673879591736,1.19745035,1547.9,1547.7,19.6136]
[1673879591948,1.10045035,1547.9,1547.7,23.05237468]
[1673879594891,1.10045035,1547.9,1547.8,2.0]
[1673879595083,1.10045035,1547.9,1547.8,24.61234]
[1673879595294,1.10045035,1547.9,1547.8,28.09677147]
[1673879595519,0.1357513,1547.9,1547.8,28.09677147]
[1673879596060,0.1357513,1547.9,1547.8,31.36955825]
[1673879596061,0.13267665,1547.9,1547.8,31.36955825]
[1673879599786,0.14562401,1548.1,1548.0,2.0]
[1673879599831,0.14562401,1548.1,1548.0,8.27278678]
[1673879599922,0.14562401,1548.1,1548.0,30.88506046]
[1673879601177,0.14562401,1548.1,1548.0,27.38227368]
[1673879601661,0.14562401,1548.1,1548.0,22.38382]
[1673879601976,2.55710868,1548.1,1548.0,3.004]
[1673879602144,1.59240963,1548.1,1548.0,3.0]
[1673879603755,2.07444978,1548.1,1548.0,9.45994]
[1673879603908,2.07444978,1548.1,1548.0,9.46394]
[1673879604114,2.07444978,1548.1,1548.0,6.46394]
[1673879604575,4.48472216,1548.1,1548.0,6.46394]
[1673879604988,3.98164964,1548.1,1548.0,6.46394]
[1673879605182,4.94621207,1548.1,1548.0,0.004]
[1673879605382,4.94618269,1548.1,1547.9,6.59284665]
[1673879605646,4.94618269,1548.1,1547.9,13.05739665]
[1673879605647,2.41499729,1548.0,1547.9,13.05739665]
[1673879605810,0.96599954,1548.0,1547.9,19.51775665]
[1673879606261,2.41499729,1548.0,1547.9,19.51775665]
[1673879606470,2.41509975,1548.0,1547.9,6.59703665]
[1673879606689,2.39109786,1548.0,1547.9,6.59703665]
[1673879607654,1.93211408,1548.0,1547.9,6.59703665]
[1673879608289,1.4492269,1548.0,1547.9,6.59703665]
[1673879608484,2.41537434,1548.0,1547.9,19.74775665]
[1673879609019,0.96614744,1548.0,1547.9,19.74775665]
[1673879609205,2.65799835,1548.1,1548.0,2.0]
[1673879609414,2.56099835,1548.1,1548.0,18.14988]
[1673879609749,2.56099835,1548.1,1548.0,18.15388]
[1673879609960,1.11177145,1548.1,1548.0,18.15388]
[1673879610115,1.11177145,1548.1,1548.0,21.87078941]
[1673879610577,0.14562401,1548.1,1548.0,21.87078941]
[1673879610789,0.14562401,1548.1,1548.0,25.14357619]
[1673879611187,0.14562401,1548.1,1548.0,31.60351619]
[1673879614733,0.96614744,1548.3,1548.0,31.60351619]
[1673879615050,0.96614744,1548.4,1548.1,8.5781384]
[1673879615055,0.96614744,1548.4,1548.2,8.27278678]
[1673879615066,0.96614744,1548.4,1548.2,34.11322678]
[1673879615373,0.96614744,1548.4,1548.3,1.254]
[1673879615584,0.96614744,1548.4,1548.3,20.63007]
[1673879615843,0.96614744,1548.4,1548.3,27.17686668]
[1673879616163,2.56099835,1548.5,1548.3,27.17686668]
[1673879616382,1.11177145,1548.5,1548.4,22.37481]
[1673879616590,1.11177145,1548.5,1548.4,22.60881]
[1673879619500,0.14562401,1548.5,1548.4,22.60881]
[1673879619713,0.14562401,1548.5,1548.4,25.87603967]
[1673879624026,0.14562401,1548.5,1548.4,22.60881]
[1673879626796,0.14562401,1548.5,1548.4,25.88159678]
[1673879631061,0.14762401,1548.5,1548.4,25.87959678]
[1673879631304,0.14562401,1548.5,1548.4,25.88159678]
[1673879631477,0.14562401,1548.5,1548.4,22.60881]
[1673879631842,0.14562401,1548.5,1548.4,25.52176]
[1673879633789,0.14562401,1548.5,1548.4,9.69227]
[1673879634035,2.13577145,1548.5,1548.4,3.004]
[1673879634202,0.14562401,1548.5,1548.4,6.45827]
[1673879634562,0.14562401,1548.5,1548.4,12.92054]
[1673879634563,1.11177145,1548.5,1548.4,12.92054]
[1673879635179,0.14762401,1548.5,1548.4,19.37681]
[1673879635508,0.14562401,1548.5,1548.4,19.60881]
[1673879635723,1.16962401,1548.5,1548.4,16.15054]
[1673879636033,2.13577145,1548.5,1548.4,16.15054]
[1673879636246,1.11177145,1548.5,1548.4,16.15054]
[1673879636822,1.11177145,1548.5,1548.4,22.60881]
[1673879637505,1.11177145,1548.5,1548.4,16.15054]
[1673879639235,2.07773809,1548.5,1548.4,3.004]
[1673879639482,4.40283215,1548.5,1548.3,6.52429]
[1673879639708,0.96487703,1548.4,1548.3,12.9208]
[1673879640025,0.96487703,1548.4,1548.3,13.1508]
[1673879641146,0.96487703,1548.4,1548.3,19.60949]
[1673879642334,0.96487703,1548.4,1548.3,6.69229]
[1673879642559,2.66797237,1548.4,1548.3,6.69229]
[1673879642767,1.70309534,1548.4,1548.3,6.69229]
[1673879644144,1.44731385,1548.4,1548.3,13.15098]
[1673879644448,0.96510413,1548.4,1548.3,13.15098]
[1673879645450,2.55804199,1548.5,1548.3,22.60967]
[1673879645705,2.55804199,1548.5,1548.4,0.23]
[1673879645921,2.55804199,1548.5,1548.4,13.14654]
[1673879646158,2.55804199,1548.5,1548.4,13.15054]
[1673879646159,1.59293786,1548.5,1548.4,13.15054]
[1673879646742,3.52505194,1548.5,1548.4,13.15054]
[1673879646951,3.52505194,1548.5,1548.4,19.60881]
[1673879647159,1.59293786,1548.5,1548.4,19.60881]
[1673879647410,1.11187644,1548.5,1548.4,19.60881]
[1673879647626,1.11187644,1548.5,1548.4,18.82931568]
[1673879648081,0.14562401,1548.5,1548.4,24.01844725]
[1673879648674,1.11187644,1548.5,1548.4,24.01844725]
[1673879649237,0.14562401,1548.5,1548.4,24.01844725]
[1673879649446,0.04562401,1548.5,1548.4,24.01844725]